fUSD/lending_fUSD_20240802
["ID","MTS","AMOUNT","RATE_DAILY","PERIOD"]
[333926884,1722631876244,-962.09,0.00016986,2]
[333926885,1722631876253,-2495.02,0.00016986,2]
[333926886,1722631876262,-12083.15,0.00016986,2]
[333926887,1722631876272,-4999.3,0.00016986,2]
[333926888,1722631876281,-2085.16,0.00016986,2]
[333926889,1722631876291,-638.28,0.00016986,2]
[333926890,1722631876301,-2257.59,0.00016986,2]
[333926891,1722631876310,-2414.82,0.00016986,2]
[333926892,1722631876320,-1355.63,0.00016986,2]
[333926893,1722631876329,-500.0,0.00016986,2]
[333926894,1722631876338,-500.0,0.00016986,2]
[333926895,1722631876347,-500.0,0.00016986,2]
[333926896,1722631876356,-500.0,0.00016986,2]
[333926897,1722631876366,-874.71,0.00016986,2]
[333926898,1722631876375,-500.0,0.00016986,2]
[333926899,1722631876385,-608.96,0.00016986,2]
[333926900,1722631876394,-9705.12,0.00016986,2]
[333926901,1722631876404,-500.0,0.00016986,2]
[333926902,1722631876413,-1893.08,0.00016986,2]
[333926903,1722631876423,-14082.4,0.00016986,2]
[333926904,1722631876433,-500.0,0.00016986,2]
[333926905,1722631876443,-523.03,0.00016986,2]
[333926906,1722631876452,-1119.23,0.00016986,2]
[333926907,1722631876462,-683.87,0.00016986,2]
[333926908,1722631876471,-151.0,0.00016986,2]
[333926909,1722631876481,-151.0,0.00016986,2]
[333926910,1722631876490,-151.0,0.00016986,2]
[333926911,1722631876499,-500.0,0.00016986,2]
[333926912,1722631876508,-1860.28,0.00016986,2]
[333926913,1722631876518,-500.0,0.00016986,2]
[333926914,1722631876527,-500.0,0.00016986,2]
[333926915,1722631876536,-1382.6,0.00016986,2]
[333926916,1722631876546,-903.96,0.00016986,2]
[333926917,1722631876555,-954.34,0.00016986,2]
[333926918,1722631876564,-3530.0,0.00016986,2]
[333926919,1722631876573,-3961.34,0.00016986,2]
[333926920,1722631876582,-500.0,0.00016986,2]
[333926921,1722631876591,-500.0,0.00016986,2]
[333926922,1722631876600,-500.0,0.00016986,2]
[333926923,1722631876610,-500.0,0.00016986,2]
[333926924,1722631876620,-843.81,0.00016986,2]
[333926925,1722631876629,-12529.11,0.00016986,2]
[333926926,1722631876639,-500.0,0.00016986,2]
[333926927,1722631876648,-500.0,0.00016986,2]
[333926928,1722631876658,-639.03,0.00016986,2]
[333926929,1722631876668,-500.0,0.00016986,2]
[333926930,1722631876685,-500.0,0.00016986,2]
[333926931,1722631876694,-3001.26,0.00016986,2]
[333926932,1722631876704,-500.0,0.00016986,2]
[333926933,1722631876714,-683.57,0.00016986,2]
[333926934,1722631876724,-1798.8,0.00016986,2]
[333926935,1722631876734,-500.0,0.00016986,2]
[333926936,1722631876743,-5697.34,0.00016986,2]
[333926937,1722631876755,-1463.12,0.00016986,2]
[333926938,1722631876765,-4074.77,0.00016986,2]
[333926939,1722631876774,-897.77,0.00016986,2]
[333926940,1722631876783,-878.31,0.00016986,2]
[333926941,1722631876792,-5102.81,0.00016986,2]
[333926942,1722631876801,-655.72,0.00016986,2]
[333926943,1722631876810,-1743.47,0.00016986,2]
[333926944,1722631876819,-500.0,0.00016986,2]
[333926945,1722631876828,-500.0,0.00016986,2]
[333926946,1722631876837,-1173.24,0.00016986,2]
[333926947,1722631876847,-500.0,0.00016986,2]
[333926948,1722631876856,-500.0,0.00016986,2]
[333926949,1722631876865,-6837.04,0.00016986,2]
[333926950,1722631876874,-5756.18,0.00016986,2]
[333926951,1722631876883,-1257.32,0.00016986,2]
[333926952,1722631876893,-500.0,0.00016986,2]
[333926953,1722631876903,-500.0,0.00016986,2]
[333926954,1722631876912,-1650.22,0.00016986,2]
[333926955,1722631876922,-2765.65,0.00016986,2]
[333926956,1722631876935,-2301.74,0.00016986,2]
[333926957,1722631876944,-500.0,0.00016986,2]
[333926958,1722631876954,-6409.64,0.00016986,2]
[333926959,1722631876963,-1236.74,0.00016986,2]
[333926960,1722631876972,-509.19,0.00016986,2]
[333926961,1722631876981,-733.33,0.00016986,2]
[333926962,1722631876990,-500.0,0.00016986,2]
[333926963,1722631877000,-500.0,0.00016986,2]
[333926964,1722631877010,-500.0,0.00016986,2]
[333926965,1722631877019,-5372.26,0.00016986,2]
[333926966,1722631877028,-5544.95,0.00016986,2]
[333926967,1722631877038,-3951.1,0.00016986,2]
[333926968,1722631877047,-500.0,0.00016986,2]
[333926969,1722631877057,-1851.65,0.00016986,2]
[333926970,1722631877066,-2577.99,0.00016986,2]
[333926971,1722631877075,-3586.66,0.00016986,2]
[333926972,1722631877085,-1224.81,0.00016986,2]
[333926973,1722631877094,-1209.35,0.00016986,2]
[333926974,1722631877103,-2249.46,0.00016986,2]
[333926975,1722631877112,-500.0,0.00016986,2]
[333926976,1722631877121,-500.0,0.00016986,2]
[333926977,1722631877131,-10535.6,0.00016986,2]
[333926978,1722631877140,-2406.02,0.00016986,2]
[333926979,1722631877150,-1453.7,0.00016986,2]
[333926980,1722631877159,-559.04,0.00016986,2]
[333926981,1722631877168,-2538.45,0.00016986,2]
[333926982,1722631877179,-500.0,0.00016986,2]
[333926983,1722631877188,-8692.9,0.00016986,2]
[333926984,1722631877197,-500.0,0.00016986,2]
[333926985,1722631877207,-500.0,0.00016986,2]
[333926986,1722631877216,-3396.73,0.00016986,2]
[333926987,1722631877228,-3668.51,0.00016986,2]
[333926988,1722631877239,-2268.82,0.00016986,2]
[333926989,1722631877250,-1514.47,0.00016986,2]
[333926990,1722631877259,-500.0,0.00016986,2]
[333926991,1722631877270,-1406.85,0.00016986,2]
[333926992,1722631877279,-523.86,0.00016986,2]
[333926993,1722631877289,-502.95,0.00016986,2]
[333926994,1722631877300,-688.7,0.00016986,2]
[333926995,1722631877310,-1979.47,0.00016986,2]
[333926996,1722631877319,-922.87,0.00016986,2]
[333926997,1722631877330,-3211.99,0.00016986,2]
[333926998,1722631877339,-797.53,0.00016986,2]
[333926999,1722631877349,-2191.83,0.00016986,2]
[333927000,1722631877359,-3705.69,0.00016986,2]
[333927001,1722631877368,-500.0,0.00016986,2]
[333927002,1722631877378,-500.0,0.00016986,2]
[333927003,1722631877387,-1575.51,0.00016986,2]
[333927004,1722631877396,-3196.73,0.00016986,2]
[333927005,1722631877406,-2709.61,0.00016986,2]
[333927006,1722631877415,-500.0,0.00016986,2]
[333927007,1722631877425,-500.0,0.00016986,2]
[333927008,1722631877439,-2713.18,0.00016986,2]
[333927009,1722631877448,-4453.97,0.00016986,2]
[333927010,1722631877458,-1958.22,0.00016986,2]
[333927011,1722631877467,-2340.98,0.00016986,2]
[333927012,1722631877476,-500.0,0.00016986,2]
[333927013,1722631877486,-500.0,0.00016986,2]
[333927014,1722631877496,-563.69,0.00016986,2]
[333927015,1722631877507,-869.62,0.00016986,2]
[333927016,1722631877517,-2375.03,0.00016986,2]
[333927017,1722631877527,-311.10630636,0.00016986,2]
[333927018,1722631877536,-500.0,0.00016986,2]
[333927019,1722631877545,-2389.86,0.00016986,2]
[333927020,1722631877554,-500.0,0.00016986,2]
[333927021,1722631877564,-1715.15,0.00016986,2]
[333927022,1722631877573,-630.02,0.00016986,2]
[333927023,1722631877583,-500.0,0.00016986,2]
[333927024,1722631877594,-3562.05,0.00016986,2]
[333927025,1722631877603,-2469.32,0.00016986,2]
[333927026,1722631877614,-6540.2,0.00016986,2]
[333927027,1722631877624,-9151.13,0.00016986,2]
[333927028,1722631877633,-509.1,0.00016986,2]
[333927029,1722631877642,-4990.42,0.00016986,2]
[333927030,1722631877651,-658.08,0.00016986,2]
[333927031,1722631877661,-3342.69,0.00016986,2]
[333927032,1722631877671,-500.0,0.00016986,2]
[333927033,1722631877684,-26009.1,0.00016986,2]
[333927034,1722631877693,-28175.02,0.00016986,2]
[333927035,1722631877702,-500.0,0.00016986,2]
[333927036,1722631877711,-151.0,0.00016986,2]
[333927037,1722631877721,-151.0,0.00016986,2]
[333927038,1722631877730,-151.0,0.00016986,2]
[333927039,1722631877739,-4775.81,0.00016986,2]
[333927040,1722631877751,-1900.39,0.00016986,2]
[333927041,1722631877761,-2182.95,0.00016986,2]
[333927042,1722631877771,-1438.66,0.00016986,2]
[333927043,1722631877780,-4377.02,0.00016986,2]
[333927044,1722631877790,-6436.04,0.00016986,2]
[333927045,1722631877800,-500.0,0.00016986,2]
[333927046,1722631877810,-3264.99,0.00016986,2]
[333927047,1722631877820,-852.15,0.00016986,2]
[333927048,1722631877830,-645.59,0.00016986,2]
[333927049,1722631877840,-500.0,0.00016986,2]
[333927050,1722631877849,-1240.73,0.00016986,2]
[333927051,1722631877858,-3696.16,0.00016986,2]
[333927052,1722631877867,-1202.01,0.00016986,2]
[333927053,1722631877877,-2794.37,0.00016986,2]
[333927054,1722631877886,-500.0,0.00016986,2]
[333927055,1722631877895,-2251.71,0.00016986,2]
[333927056,1722631877904,-500.0,0.00016986,2]
[333927057,1722631877913,-3027.14,0.00016986,2]
[333927058,1722631877923,-926.19,0.00016986,2]
[333927059,1722631877936,-1612.54,0.00016986,2]
[333927060,1722631877945,-504.24,0.00016986,2]
[333927061,1722631877955,-500.0,0.00016986,2]
[333927062,1722631877964,-2122.85,0.00016986,2]
[333927063,1722631877974,-3341.29,0.00016986,2]
[333927064,1722631877983,-694.52,0.00016986,2]
[333927065,1722631877992,-1082.52,0.00016986,2]
[333927066,1722631878001,-650.54,0.00016986,2]
[333927067,1722631878010,-2598.43,0.00016986,2]
[333927068,1722631878019,-6297.72,0.00016986,2]
[333927069,1722631878028,-2653.91,0.00016986,2]
[333927070,1722631878037,-2172.15,0.00016986,2]
[333927071,1722631878046,-500.0,0.00016986,2]
[333927072,1722631878055,-500.0,0.00016986,2]
[333927073,1722631878065,-948.12,0.00016986,2]
[333927074,1722631878074,-1222.98,0.00016986,2]
[333927075,1722631878084,-500.0,0.00016986,2]
[333927076,1722631878093,-2097.85,0.00016986,2]
[333927077,1722631878102,-1334.04,0.00016986,2]
[333927078,1722631878111,-500.0,0.00016986,2]
[333927079,1722631878120,-6565.68,0.00016986,2]
[333927080,1722631878130,-500.0,0.00016986,2]
[333927081,1722631878139,-15546.98,0.00016986,2]
[333927082,1722631878149,-3121.8,0.00016986,2]
[333927083,1722631878158,-500.0,0.00016986,2]
[333927084,1722631878168,-817.51,0.00016986,2]
[333927085,1722631878180,-951.07,0.00016986,2]
[333927086,1722631878190,-500.0,0.00016986,2]
[333927087,1722631878199,-11666.5,0.00016986,2]
[333927088,1722631878209,-1727.02,0.00016986,2]
[333927089,1722631878218,-1473.22,0.00016986,2]
[333927090,1722631878228,-6263.88,0.00016986,2]
[333927091,1722631878237,-2288.81,0.00016986,2]
[333927092,1722631878247,-1227.93,0.00016986,2]
[333927093,1722631878256,-500.0,0.00016986,2]
[333927094,1722631878266,-1322.25,0.00016986,2]
[333927095,1722631878276,-522.62,0.00016986,2]
[333927096,1722631878286,-1919.7,0.00016986,2]
[333927097,1722631878296,-500.0,0.00016986,2]
[333927098,1722631878306,-3515.09,0.00016986,2]
[333927099,1722631878316,-500.0,0.00016986,2]
[333927100,1722631878326,-3829.18,0.00016986,2]
[333927101,1722631878336,-5376.17,0.00016986,2]
[333927102,1722631878345,-673.19,0.00016986,2]
[333927103,1722631878354,-2822.75,0.00016986,2]
[333927104,1722631878364,-500.0,0.00016986,2]
[333927105,1722631878373,-2008.35,0.00016986,2]
[333927106,1722631878383,-981.35,0.00016986,2]
[333927107,1722631878393,-500.0,0.00016986,2]
[333927108,1722631878402,-685.52,0.00016986,2]
[333927109,1722631878412,-500.0,0.00016986,2]
[333927110,1722631878421,-151.0,0.00016986,2]
[333927111,1722631878433,-151.0,0.00016986,2]
[333927112,1722631878443,-151.0,0.00016986,2]
[333927113,1722631878452,-4435.49,0.00016986,2]
[333927114,1722631878462,-500.0,0.00016986,2]
[333927115,1722631878471,-151.0,0.00016986,2]
[333927116,1722631878481,-872.74,0.00016986,2]
[333927117,1722631878491,-949.06,0.00016986,2]
[333927118,1722631878500,-208.683954,0.00016986,2]
[333927119,1722631878509,-2658.03,0.00016986,2]
[333927120,1722631878520,-5218.0,0.00016986,2]
[333927121,1722631878530,-3400.22,0.00016986,2]
[333927122,1722631878540,-574.23,0.00016986,2]
[333927123,1722631878550,-500.0,0.00016986,2]
[333927124,1722631878560,-2831.52,0.00016986,2]
[333927125,1722631878570,-1002.52,0.00016986,2]
[333927126,1722631878580,-2314.61,0.00016986,2]
[333927127,1722631878590,-500.0,0.00016986,2]
[333927128,1722631878599,-500.0,0.00016986,2]
[333927129,1722631878609,-776.68,0.00016986,2]
[333927130,1722631878618,-500.0,0.00016986,2]
[333927131,1722631878627,-500.0,0.00016986,2]
[333927132,1722631878637,-739.66,0.00016986,2]
[333927133,1722631878647,-952.19,0.00016986,2]
[333927134,1722631878656,-3943.83,0.00016986,2]
[333927135,1722631878666,-500.0,0.00016986,2]
[333927136,1722631878680,-400.0,0.00016986,2]
[333927137,1722631878690,-1370.55,0.00016986,2]
[333927138,1722631878699,-879.88,0.00016986,2]
[333927139,1722631878708,-5662.54,0.00016986,2]
[333927140,1722631878718,-778.51,0.00016986,2]
[333927141,1722631878728,-4114.11,0.00016986,2]
[333927142,1722631878738,-3003.87,0.00016986,2]
[333927143,1722631878747,-2947.17,0.00016986,2]
[333927144,1722631878759,-994.11,0.00016986,2]
[333927145,1722631878769,-411.90408367,0.00016986,2]
[333927146,1722631878778,-5178.68,0.00016986,2]
[333927147,1722631878788,-500.0,0.00016986,2]
[333927148,1722631878797,-500.0,0.00016986,2]
[333927149,1722631878806,-4631.47,0.00016986,2]
[333927150,1722631878816,-3399.15,0.00016986,2]
[333927151,1722631878825,-3719.52,0.00016986,2]
[333927152,1722631878835,-1176.85,0.00016986,2]
[333927153,1722631878844,-901.79,0.00016986,2]
[333927154,1722631878855,-500.0,0.00016986,2]
[333927155,1722631878864,-1866.32,0.00016986,2]
[333927156,1722631878873,-2716.92,0.00016986,2]
[333927157,1722631878883,-500.0,0.00016986,2]
[333927158,1722631878891,-5014.53,0.00016986,2]
[333927159,1722631878901,-6934.89,0.00016986,2]
[333927160,1722631878910,-2157.87,0.00016986,2]
[333927161,1722631878919,-1862.83,0.00016986,2]
[333927162,1722631878929,-3448.97,0.00016986,2]
[333927163,1722631878939,-502.73,0.00016986,2]
[333927164,1722631878948,-1053.43,0.00016986,2]
[333927165,1722631878958,-3688.62,0.00016986,2]
[333927166,1722631878968,-1295.04,0.00016986,2]
[333927167,1722631878978,-17990.99,0.00016986,2]
[333927168,1722631878987,-9446.74,0.00016986,2]
[333927169,1722631879136,-940.79,0.00016986,2]
[333927170,1722631879146,-6650.95,0.00016986,2]
[333927171,1722631879156,-500.0,0.00016986,2]
[333927172,1722631879165,-500.0,0.00016986,2]
[333927173,1722631879174,-2082.58,0.00016986,2]
[333927174,1722631879189,-500.0,0.00016986,2]
[333927175,1722631879199,-4468.87,0.00016986,2]
[333927176,1722631879209,-3800.28,0.00016986,2]
[333927177,1722631879220,-1111.44,0.00016986,2]
[333927178,1722631879230,-1255.1,0.00016986,2]
[333927179,1722631879240,-500.0,0.00016986,2]
[333927180,1722631879250,-500.0,0.00016986,2]
[333927181,1722631879260,-1533.49,0.00016986,2]
[333927182,1722631879271,-750.36,0.00016986,2]
[333927183,1722631879281,-3300.34,0.00016986,2]
[333927184,1722631879291,-500.0,0.00016986,2]
[333927185,1722631879302,-3049.98,0.00016986,2]
[333927186,1722631879312,-1836.69,0.00016986,2]
[333927187,1722631879322,-1276.99,0.00016986,2]
[333927188,1722631879332,-2045.49,0.00016986,2]
[333927189,1722631879342,-1190.92,0.00016986,2]
[333927190,1722631879351,-500.0,0.00016986,2]
[333927191,1722631879362,-537.78,0.00016986,2]
[333927192,1722631879372,-3361.18,0.00016986,2]
[333927193,1722631879382,-896.88,0.00016986,2]
[333927194,1722631879392,-939.76,0.00016986,2]
[333927195,1722631879403,-2572.45,0.00016986,2]
[333927196,1722631879412,-32037.63,0.00016986,2]
[333927197,1722631879422,-480.0,0.00016996,2]
[333927198,1722631879434,-6000.0,0.00017,2]
[333927199,1722631879444,-150.0,0.00017105,2]
[333927200,1722631879454,-16045.63488926,0.00017126,2]
[333927201,1722631879465,-163.06583263,0.00017174,2]
[333927202,1722631879474,-150.0,0.00017178,2]
[333927203,1722631879484,-160.52,0.00017179,2]
[333927204,1722631879494,-162.76,0.00017197,2]
[333927205,1722631879504,-167.15,0.0001722,2]
[333927206,1722631879513,-151.72863448,0.00017249,2]
[333927207,1722631879523,-508.79891608,0.00017257,2]
[333927208,1722631879533,-500.0,0.0001726,2]
[333927209,1722631879542,-1253.02,0.0001726,2]
[333927210,1722631879552,-500.0,0.0001726,2]
[333927211,1722631879562,-500.0,0.0001726,2]
[333927212,1722631879572,-500.0,0.0001726,2]
[333927213,1722631879581,-2250.07,0.0001726,2]
[333927214,1722631879591,-1145.72,0.0001726,2]
[333927215,1722631879601,-500.0,0.0001726,2]
[333927216,1722631879610,-500.0,0.0001726,2]
[333927217,1722631879620,-643.67,0.0001726,2]
[333927218,1722631879630,-828.51,0.0001726,2]
[333927219,1722631879640,-659.65,0.0001726,2]
[333927220,1722631879650,-714.58,0.0001726,2]
[333927221,1722631879660,-1399.14,0.0001726,2]
[333927222,1722631879670,-500.0,0.0001726,2]
[333927223,1722631879684,-500.0,0.0001726,2]
[333927224,1722631879694,-277.18,0.0001726,2]
[333927225,1722631879703,-500.0,0.0001726,2]
[333927226,1722631879712,-959.33,0.0001726,2]
[333927227,1722631879722,-500.0,0.0001726,2]
[333927228,1722631879733,-1202.33,0.0001726,2]
[333927229,1722631879742,-500.0,0.0001726,2]
[333927230,1722631879752,-801.79,0.0001726,2]
[333927231,1722631879762,-850.22,0.0001726,2]
[333927232,1722631879772,-500.0,0.0001726,2]
[333927233,1722631879782,-500.0,0.0001726,2]
[333927234,1722631879792,-1940.96,0.0001726,2]
[333927235,1722631879801,-1164.02,0.0001726,2]
[333927236,1722631879812,-227.08,0.0001726,2]
[333927237,1722631879822,-500.0,0.0001726,2]
[333927238,1722631879831,-684.63,0.0001726,2]
[333927239,1722631879842,-1463.38,0.0001726,2]
[333927240,1722631879854,-678.52,0.0001726,2]
[333927241,1722631879864,-1236.27,0.0001726,2]
[333927242,1722631879873,-500.0,0.0001726,2]
[333927243,1722631879883,-912.78,0.0001726,2]
[333927244,1722631879892,-1399.18,0.0001726,2]
[333927245,1722631879903,-601.54,0.0001726,2]
[333927246,1722631879915,-717.09,0.0001726,2]
[333927247,1722631879928,-500.0,0.0001726,2]
[333927248,1722631879938,-500.0,0.0001726,2]
[333927249,1722631879947,-624.24,0.0001726,2]
[333927250,1722631879956,-772.84,0.0001726,2]
[333927251,1722631879966,-500.0,0.0001726,2]
[333927252,1722631879975,-500.0,0.0001726,2]
[333927253,1722631879984,-590.92,0.0001726,2]
[333927254,1722631879994,-500.0,0.0001726,2]
[333927255,1722631880003,-500.0,0.0001726,2]
[333927256,1722631880013,-500.0,0.0001726,2]
[333927257,1722631880022,-1290.26,0.0001726,2]
[333927258,1722631880032,-578.21,0.0001726,2]
[333927259,1722631880041,-1619.87,0.0001726,2]
[333927260,1722631880051,-500.0,0.0001726,2]
[333927261,1722631880060,-570.92,0.0001726,2]
[333927262,1722631880069,-540.78,0.0001726,2]
[333927263,1722631880078,-696.91,0.0001726,2]
[333927264,1722631880089,-1078.33,0.0001726,2]
[333927265,1722631880099,-500.0,0.0001726,2]
[333927266,1722631880110,-623.34,0.0001726,2]
[333927267,1722631880119,-1419.39,0.0001726,2]
[333927268,1722631880128,-500.0,0.0001726,2]
[333927269,1722631880138,-1662.54,0.0001726,2]
[333927270,1722631880149,-1644.64,0.0001726,2]
[333927271,1722631880160,-780.53,0.0001726,2]
[333927272,1722631880169,-723.34,0.0001726,2]
[333927273,1722631880179,-553.18,0.0001726,2]
[333927274,1722631880188,-791.76,0.0001726,2]
[333927275,1722631880197,-500.0,0.0001726,2]
[333927276,1722631880207,-503.13,0.0001726,2]
[333927277,1722631880216,-801.56,0.0001726,2]
[333927278,1722631880225,-1198.81,0.0001726,2]
[333927279,1722631880235,-500.0,0.0001726,2]
[333927280,1722631880244,-500.0,0.0001726,2]
[333927281,1722631880254,-1604.9,0.0001726,2]
[333927282,1722631880263,-729.83,0.0001726,2]
[333927283,1722631880274,-1748.07,0.0001726,2]
[333927284,1722631880283,-500.0,0.0001726,2]
[333927285,1722631880293,-2059.13,0.0001726,2]
[333927286,1722631880302,-1346.22,0.0001726,2]
[333927287,1722631880312,-997.69,0.0001726,2]
[333927288,1722631880322,-500.0,0.0001726,2]
[333927289,1722631880331,-1212.35,0.0001726,2]
[333927290,1722631880342,-843.11,0.0001726,2]
[333927291,1722631880352,-500.0,0.0001726,2]
[333927292,1722631880361,-500.0,0.0001726,2]
[333927293,1722631880371,-1363.88,0.0001726,2]
[333927294,1722631880381,-1866.38,0.0001726,2]
[333927295,1722631880391,-500.0,0.0001726,2]
[333927296,1722631880400,-500.0,0.0001726,2]
[333927297,1722631880410,-500.0,0.0001726,2]
[333927298,1722631880419,-1438.22,0.0001726,2]
[333927299,1722631880430,-643.47,0.0001726,2]
[333927300,1722631880440,-500.0,0.0001726,2]
[333927301,1722631880450,-500.0,0.0001726,2]
[333927302,1722631880459,-500.0,0.0001726,2]
[333927303,1722631880469,-1643.03,0.0001726,2]
[333927304,1722631880479,-543.03,0.0001726,2]
[333927305,1722631880488,-500.0,0.0001726,2]
[333927306,1722631880498,-500.0,0.0001726,2]
[333927307,1722631880508,-1346.74,0.0001726,2]
[333927308,1722631880517,-635.67,0.0001726,2]
[333927309,1722631880526,-500.0,0.0001726,2]
[333927310,1722631880536,-553.97,0.0001726,2]
[333927311,1722631880545,-500.0,0.0001726,2]
[333927312,1722631880555,-500.0,0.0001726,2]
[333927313,1722631880564,-500.0,0.0001726,2]
[333927314,1722631880573,-500.0,0.0001726,2]
[333927315,1722631880583,-500.0,0.0001726,2]
[333927316,1722631880592,-500.0,0.0001726,2]
[333927317,1722631880601,-500.0,0.0001726,2]
[333927318,1722631880611,-1307.89,0.0001726,2]
[333927319,1722631880620,-2273.53,0.0001726,2]
[333927320,1722631880630,-713.8,0.0001726,2]
[333927321,1722631880639,-500.0,0.0001726,2]
[333927322,1722631880648,-970.89,0.0001726,2]
[333927323,1722631880658,-972.89,0.0001726,2]
[333927324,1722631880667,-500.0,0.0001726,2]
[333927325,1722631880683,-931.08,0.0001726,2]
[333927326,1722631880692,-936.47,0.0001726,2]
[333927327,1722631880702,-500.0,0.0001726,2]
[333927328,1722631880711,-575.8,0.0001726,2]
[333927329,1722631880720,-1868.69,0.0001726,2]
[333927330,1722631880730,-500.0,0.0001726,2]
[333927331,1722631880739,-500.0,0.0001726,2]
[333927332,1722631880750,-500.0,0.0001726,2]
[333927333,1722631880760,-500.0,0.0001726,2]
[333927334,1722631880769,-500.0,0.0001726,2]
[333927335,1722631880779,-500.0,0.0001726,2]
[333927336,1722631880789,-500.0,0.0001726,2]
[333927337,1722631880798,-500.0,0.0001726,2]
[333927338,1722631880808,-952.94,0.0001726,2]
[333927339,1722631880817,-1018.81,0.0001726,2]
[333927340,1722631880827,-500.0,0.0001726,2]
[333927341,1722631880836,-2273.19,0.0001726,2]
[333927342,1722631880845,-942.1,0.0001726,2]
[333927343,1722631880855,-155.12424631,0.0001726,2]
[333927344,1722631880864,-500.0,0.0001726,2]
[333927345,1722631880874,-500.0,0.0001726,2]
[333927346,1722631880883,-548.9,0.0001726,2]
[333927347,1722631880892,-500.0,0.0001726,2]
[333927348,1722631880902,-1144.56,0.0001726,2]
[333927349,1722631880911,-912.95,0.0001726,2]
[333927350,1722631880921,-785.19,0.0001726,2]
[333927351,1722631880930,-857.91,0.0001726,2]
[333927352,1722631880940,-3574.48,0.0001726,2]
[333927353,1722631880949,-911.5,0.0001726,2]
[333927354,1722631880959,-500.0,0.0001726,2]
[333927355,1722631880969,-500.0,0.0001726,2]
[333927356,1722631880978,-642.03,0.0001726,2]
[333927357,1722631880988,-967.56,0.0001726,2]
[333927358,1722631880998,-2571.87,0.0001726,2]
[333927359,1722631881008,-1908.36,0.0001726,2]
[333927360,1722631881017,-500.0,0.0001726,2]
[333927361,1722631881027,-566.34,0.0001726,2]
[333927362,1722631881037,-500.0,0.0001726,2]
[333927363,1722631881046,-581.52,0.0001726,2]
[333927364,1722631881055,-500.0,0.0001726,2]
[333927365,1722631881065,-500.0,0.0001726,2]
[333927366,1722631881075,-500.0,0.0001726,2]
[333927367,1722631881084,-500.0,0.0001726,2]
[333927368,1722631881093,-500.0,0.0001726,2]
[333927369,1722631881102,-500.0,0.0001726,2]
[333927370,1722631881112,-500.0,0.0001726,2]
[333927371,1722631881121,-4070.42,0.0001726,2]
[333927372,1722631881130,-500.0,0.0001726,2]
[333927373,1722631881139,-604.92,0.0001726,2]
[333927374,1722631881148,-500.0,0.0001726,2]
[333927375,1722631881157,-1569.57,0.0001726,2]
[333927376,1722631881165,-1902.31,0.0001726,2]
[333927377,1722631881174,-500.0,0.0001726,2]
[333927378,1722631881185,-3171.16,0.0001726,2]
[333927379,1722631881194,-1925.65,0.0001726,2]
[333927380,1722631881203,-500.0,0.0001726,2]
[333927381,1722631881213,-775.73,0.0001726,2]
[333927382,1722631881223,-509.13,0.0001726,2]
[333927383,1722631881232,-632.85,0.0001726,2]